Cogmind - Beta 13 @@@ ROGUE MODE // 2024.04.24 @ 03:22:38 Player: CatPlusPlus Result: Destroyed by D-53 Grenadier with Mini Grenade Launcher Performance ------------- Evolutions (0) 0 Regions Visited (2) 400 Robots Destroyed (37) 185 Value Destroyed (721) 721 Prototype IDs (0) 0 Alien Tech Used (0) 0 Bonus (0) 0 TOTAL SCORE: 1306 Bonus ------- None Cogmind --------- Core Integrity 0/250 Matter 281/300 Energy 100/100 System Corruption 0% Temperature Cool (0) Movement Treading (240) Ox1 Location -10/Mines Parts ------- > --- POWER (1) -------- (None) > --- PROPULSION (2) --- Light Treads Light Treads > --- UTILITY (2) ------ High-capacity Storage Unit Core Shielding > --- WEAPON (2) ------- Autogun Autogun > --- INVENTORY (20) --- Ion Engine Light Ion Engine Light Treads Light Treads Light Treads Titanium Leg Improved Heat Sink Improved Heat Sink Medium Storage Unit Medium Matter Pod (100) Structural Scanner Sensor Array Improved Terrain Scanner Seismic Detector Improved Trap Extractor (0/6) Medium Laser Autogun Autogun Datajack Mining Laser Peak State ------------ > --- POWER ------------ Light Ion Engine > --- PROPULSION ------- Light Treads Light Treads > --- UTILITY ---------- High-capacity Storage Unit Seismic Detector > --- WEAPON ----------- Autogun Autogun > --- INVENTORY -------- Ion Engine Light Ion Engine Light Treads Light Treads Light Treads Wheel Wheel Improved Heat Sink Improved Heat Sink Medium Storage Unit Medium Matter Pod Structural Scanner Sensor Array Improved Terrain Scanner Improved Trap Extractor Medium Laser Autogun Autogun Datajack Mining Laser [Rating: 12] Favorites ----------- Power Ion Engine Engine Ion Engine Propulsion Light Treads Treads Light Treads Leg Aluminum Leg Utility Seismic Detector Device Seismic Detector Storage High-capacity Storage Unit Protection Core Shielding Weapon Assault Rifle Energy Gun Medium Laser Ballistic Gun Assault Rifle Special Weapon Mining Laser Special Melee Weapon Datajack Build | -11 -10 -10 ------- Run | Yrd Mat Min Slots Evolved . | . . . Power . | . . . Propulsion . | . . . Utility . | . . . Weapon . | . . . Parts Attached 31 | 7 23 1 Power 3 | 1 2 . Engine 3 | 1 2 . Core . | . . . Reactor . | . . . Propulsion 7 | 2 5 . Treads 5 | 2 3 . Leg 2 | . 2 . Wheel . | . . . Hover . | . . . Flight . | . . . Utility 8 | 2 5 1 Device 3 | 1 2 . Storage 4 | 1 3 . Processor . | . . . Hackware . | . . . Protection 1 | . . 1 Artifact . | . . . Weapon 13 | 2 11 . Energy Gun 1 | . 1 . Energy Cannon . | . . . Ballistic Gun 9 | 2 7 . Ballistic Cannon . | . . . Launcher . | . . . Special Weapon 2 | . 2 . Impact Weapon . | . . . Slashing Weapon . | . . . Piercing Weapon . | . . . Special Melee Weapon 1 | . 1 . Unidentified Prototypes . | . . . Parts Lost 4 | . 3 1 Power 2 | . 1 1 Propulsion 1 | . 1 . Utility . | . . . Weapon 1 | . 1 . Highest Loss Streak 3 | . 3 1 To Critical Strikes . | . . . Average Slot Usage (%) 99 | . 99 100 Engine 13 | . 13 14 Treads 26 | . 26 28 Leg 1 | . 1 . Device 13 | . 14 9 Storage 14 | . 14 14 Energy Gun 2 | . 2 . Ballistic Gun 24 | . 24 28 Naked Turns . | . . . Heaviest Build 52 | 14 52 50 Greatest Support 40 | 40 40 40 Greatest Overweight (x) 2 | 2 2 1 Average Overweight (x) . | . . 1 Largest Inventory Capacity 20 | 8 20 20 Average Capacity 17 | 7 18 20 Most Carried 20 | 5 20 20 Average Carried 15 | 3 16 19 Final Capacity 20 | 8 20 20 Final Carried 20 | 5 20 20 Class Distribution -------------------- 94% | Mutant 5% | Scavenger-Mutant Dominant Class ---------------- Mutant | -10/Materials Mutant | -10/Mines Resources | -11 -10 -10 ----------- Run | Yrd Mat Min Matter Collected 1146 | 273 851 22 Remotely . | . . . Salvage Created 1183 | 109 1074 . Parts 83 | 9 74 . Haulers Intercepted 2 | . 2 . Recyclers Shooed 4 | . 4 . Parts Field Recycled . | . . . Retrieved Matter . | . . . Parts Self-Destructed . | . . . Prevented . | . . . Kills | -11 -10 -10 ------- Run | Yrd Mat Min Combat Hostiles Destroyed 17 | . 17 . Guns 17 | . 17 . Classes Destroyed 9 | 2 7 . Worker 1 | . 1 . Builder 7 | . 7 . Tunneler 5 | 2 3 . Hauler 2 | . 2 . Recycler 2 | 1 1 . Operator 1 | . 1 . Watcher 2 | . 2 . Swarmer 2 | . 2 . Grunt 15 | . 15 . Best Kill Streak 5 | 2 5 . Combat Bots Only 3 | . 3 . Max Kills in Single Turn 2 | 1 2 . Gunslinging . | . . . Exploded . | . . . Melee . | . . . Uniques/NPCs Destroyed . | . . . Combat | -11 -10 -10 -------- Run | Yrd Mat Min Hostile Shots Fired 132 | . 122 10 Missed 33 | . 33 . Damage Taken 1377 | . 958 419 Core 257 | . 129 128 Absorbed by Shields . | . . . Redirected to Shielding 29 | . . 29 Regen/Repaired (Parts) 61 | . 61 . Core Remaining (%) 100 | 100 . . Volleys Fired 146 | 10 133 3 Largest 2 | 2 2 2 Hottest 150 | 40 150 46 Shots Fired 276 | 20 250 6 Gun 262 | 20 236 6 Cannon . | . . . Launcher . | . . . Special 14 | . 14 . Kinetic 257 | 20 231 6 Thermal 19 | . 19 . Explosive . | . . . Electromagnetic . | . . . Robot Hit Streak 12 | 4 12 2 Robot Miss Streak 5 | 3 5 2 Penetration Max . | . . . Secondary Targets 4 | . 4 . Max Gunslinging Chain 1 | . 1 . Shots Hit Robots 162 | 13 146 3 Core Hits 63 | 5 57 1 Critical Kills 1 | 1 . . Critical Parts Destroyed 1 | . 1 . Critical Strikes 2 | 1 1 . Destroy 2 | 1 1 . Melee Attacks 1 | . 1 . Impact . | . . . Slashing . | . . . Piercing . | . . . Sneak Attacks 1 | . 1 . Combat Hostiles . | . . . Follow-up Attacks . | . . . Damage Inflicted 1982 | 141 1772 69 Guns 1911 | 139 1707 65 Cannons . | . . . Explosions . | . . . Melee . | . . . Ramming 47 | 2 41 4 Kinetic 1885 | 139 1681 65 Thermal 50 | . 50 . Explosive . | . . . Electromagnetic . | . . . Impact . | . . . Slashing . | . . . Piercing . | . . . Highest Corruption . | . . . Average Corruption . | . . . Corruption Purged . | . . . Corruption Blocked . | . . . Overload Shots . | . . . Overflow Damage . | . . . Projectiles . | . . . Explosions . | . . . Melee . | . . . Knockbacks . | . . . Impact . | . . . Kinetic . | . . . Secondary . | . . . Self-Inflicted Damage . | . . . Shots . | . . . Rammed 11 | 1 9 1 Targets Rammed 13 | 1 11 1 Kicked 1 | . 1 . Crushed 1 | . 1 . Highest Temperature 60 | . 60 6 Average Temperature 15 | . 15 4 Received Heat Transfer 420 | . 420 . Siege Activations . | . . . Robots Corrupted . | . . . Combat Hostiles . | . . . Parts Fried . | . . . Impact Corruptions . | . . . Robots Melted . | . . . Combat Hostiles . | . . . Parts Melted . | . . . Heat Transferred 124 | . 124 . Parts Sabotaged . | . . . Parts Stolen . | . . . Parts Stripped . | . . . Power Chain Reactions . | . . . Alert | -11 -10 -10 ------- Run | Yrd Mat Min Peak Influence 237 | 15 237 25 Initial 25 | . 9 25 Average 55 | 9 59 24 Maximum Alert Level 1 | . 1 . Low Security (%) 98 | 100 98 100 Level 1 1 | . 1 . Level 2 . | . . . Level 3 . | . . . Level 4 . | . . . Level 5 . | . . . High Security . | . . . Max Security . | . . . Squads Dispatched 6 | . 6 . Investigation 3 | . 3 . Extermination . | . . . Reinforcement 3 | . 3 . Assault . | . . . Garrison . | . . . Intercept . | . . . Searches Triggered . | . . . Construction Impeded . | . . . Haulers Reinforced . | . . . Active Scanning Responses . | . . . Cargo Convoy Interrupts . | . . . Stealth | -11 -10 -10 --------- Run | Yrd Mat Min Distress Signals 3 | . 3 . Communications Jammed . | . . . Distress Signals . | . . . Times Spotted 33 | . 31 2 Peak Tracking Total 4 | . 4 2 Tactical Retreats 1 | . 1 . Traps | -11 -10 -10 ------- Run | Yrd Mat Min Traps Triggered 1 | . 1 . Indirectly . | . . . Trap Hack Attempts 6 | . 6 . Triggered . | . . . Disarmed . | . . . Reprogrammed 2 | . 2 . Reused . | . . . Traps Extracted . | . . . Installed . | . . . Triggered . | . . . Machines | -11 -10 -10 ---------- Run | Yrd Mat Min Machines Disabled 3 | . 3 . Max in Single Turn 1 | . 1 . Machines Repaired . | . . . Machines Dismantled . | . . . Machines Sabotaged . | . . . Overloaded Fab Kills . | . . . Hacking | -11 -10 -10 --------- Run | Yrd Mat Min Machines Accessed 10 | . 9 1 Terminals 6 | . 6 . Fabricators . | . . . Repair Stations 1 | . 1 . Recycling Units 2 | . 2 . Scanalyzers . | . . . Garrison Access . | . . . Total Hacks 27 | . 26 1 Successful 12 | . 11 1 Failed 15 | . 15 . Catastrophic 3 | . 3 . Database Lockouts . | . . . Manual 10 | . 10 . Terminals 16 | . 16 . Fabricators . | . . . Repair Stations 5 | . 5 . Recycling Units 5 | . 5 . Scanalyzers . | . . . Garrison Access . | . . . Terminal Hacks 5 | . 4 1 Open Door 1 | . . 1 Locate Traps 2 | . 2 . Recall Investigation 1 | . 1 . Hauler Manifests 1 | . 1 . Fabricator Hacks . | . . . Repair Station Hacks 4 | . 4 . Scan Component 2 | . 2 . Repair 2 | . 2 . Recycling Unit Hacks . | . . . Scanalyzer . | . . . Garrison Access Hacks . | . . . Unauthorized Hacks 3 | . 3 . Terminals 1 | . 1 . Botnet 1 | . 1 . Fabricators . | . . . Repair Stations . | . . . Recycling Units 2 | . 2 . Tunnel 2 | . 2 . Scanalyzers . | . . . Garrison Access . | . . . Data Cores Recovered . | . . . Used . | . . . Hacking Detections 9 | . 9 . Full Trace Events . | . . . Feedback Events . | . . . Feedback Blocked . | . . . Robot Schematics Acquired . | . . . Robots Built . | . . . Authchips . | . . . Time . | . . . Total Robot Build Rating . | . . . Part Schematics Acquired . | . . . Parts Built . | . . . Authchips . | . . . Time . | . . . Total Part Build Rating . | . . . Parts Repaired 2 | . 2 . Time 52 | . 52 . Parts Recycled . | . . . Recycled Matter . | . . . Retrieved Matter . | . . . Retrieved Components . | . . . Parts Scanalyzed . | . . . Part Schematics Acquired . | . . . Parts Damaged . | . . . Bothacking | -11 -10 -10 ------------ Run | Yrd Mat Min Used RIF Installer . | . . . Robots Hacked . | . . . Non-combat . | . . . Combat . | . . . Robot Hacks Applied . | . . . Relay Couplers Released . | . . . Fabnet Peak Effective % . | . . . Robots Rewired . | . . . Allies Hacked . | . . . Hacks Repelled . | . . . Allies | -11 -10 -10 -------- Run | Yrd Mat Min Total Allies . | . . . Largest Group . | . . . Highest-Rated Group . | . . . Highest-Rated Ally . | . . . Total Orders . | . . . Ally Attacks . | . . . Total Damage . | . . . Kills . | . . . Allies Corrupted . | . . . Allies Melted . | . . . Intel | -11 -10 -10 ------- Run | Yrd Mat Min Robot Analysis Total . | . . . Derelict Logs Recovered . | . . . Drone Launches . | . . . Drone Recoveries . | . . . Exploration | -11 -10 -10 ------------- Run | Yrd Mat Min Turns Passed 3557 | 164 3225 168 Spaces Moved 1300 | 77 1161 62 Core 6 | 6 . . Treads 1194 | 71 1061 62 Legs 100 | . 100 . Wheels . | . . . Hover . | . . . Flight . | . . . Fastest Speed 50 | 50 120 240 Average Speed 217 | 155 220 240 Slowest Speed 320 | 160 320 240 Overloaded Moves . | . . . Propulsion Burnouts . | . . . Robots Hopped . | . . . Cave-ins Triggered . | . . . Exploration Rate (%) 39 | 6 99 12 Regions Visited 2 Branch Regions 1 Pre-discovered Areas 2 | . 2 . Known Exits Taken . | . . . Unknown Exits Taken 2 | 1 1 . Scrap Searched 1 | . . 1 Spaces Dug 9 | . 9 . Terrain Destroyed 12 | . 12 . Melee . | . . . Projectile 12 | . 12 . AOE . | . . . Terrain Rammed . | . . . Walls Destroyed . | . . . Machines Disabled . | . . . Actions | -11 -10 -10 --------- Run | Yrd Mat Min Total 1750 | 99 1575 76 Wait 187 | . 186 1 Move 1298 | 76 1160 62 Hop . | . . . Pick Up 40 | 5 31 4 Fast Attach 11 | 7 4 . Attach 2 | . 2 . Detach . | . . . Swap 18 | . 17 1 Drop 28 | . 24 4 Fire 146 | 10 133 3 Melee 1 | . 1 . Ram . | . . . Kick 1 | . 1 . Crush 12 | 1 10 1 Escape Stasis . | . . . Rewire . | . . . Trap 6 | . 6 . Miscellaneous . | . . . Route ------- -11/Scrapyard -10/Materials (discovered 6 exits: [*Mat x3] / *Min x2 / [*Sub]) -10/Mines History --------- Turn | Location | Event 12 | -11/Scrapyard | Discovered new exit (range 16) 165 | -11/Scrapyard | Entered Materials 243 | -10/Materials | Discovered new exit (range 16) 308 | -10/Materials | Build established: Mutant 349 | -10/Materials | Discovered new exit (range 15) 573 | -10/Materials | Lost 3 parts (1p1n1w) 758 | -10/Materials | Discovered new exit (range 16) 1401 | -10/Materials | Discovered new exit (range 9) 1732 | -10/Materials | Discovered new exit (range 8) 2343 | -10/Materials | Discovered new exit (range 15) 2484 | -10/Materials | Repaired Lgt. Treads 2511 | -10/Materials | Repaired Lgt. Treads 2605 | -10/Materials | Core integrity fell below 50% 3390 | -10/Materials | Entered Mines 3403 | -10/Mines | Met a Derelict who couldn't figure out how to use a Trap Extractor 3416 | -10/Mines | Met a Derelict bent on vengeance 3536 | -10/Mines | Assembled infested the area 3550 | -10/Mines | Met a Derelict shopkeep closing up shop 3557 | -10/Mines | Core integrity fell below 20% 3558 | -10/Mines | Destroyed by D-53 Grenadier with Mini Grenade Launcher Last Messages --------------- 03510_ Acquired 1 matter. 03510_ R-06 Scavenger collects Wheel. 03512_ K-01 Serf collects debris. 03513_ Acquired 9 matter. 03520_ Slammed into T-07 Excavator. 03536_ ALERT: Infestation in the mines, dispatching Demolisher response squad. 03549_ C-30 ARC bursts open, deploying its payload. 03549_ D-53 Grenadier unfolds itself. 03549_ Machine disabled. 03550_ T8-I5H(g): "Sorry, the Unaware have moved into these parts and I'm closing up shop. No more sales from me!" 03551_ The unstable cave ceiling collapses. 03551_ T8-I5H(g) destroyed. 03553_ Lgt. Ion Engine destroyed. 03553_ U-05 Engineer lays Concrete. 03554_ U-05 Engineer builds a Wall. 03555_ T-07 Excavator destroyed. Map ----- +----------------------------------------------------+ | | | | | | | | | | | | | | | | | | | ?????????????????????????????????????????????????? | | ?????????????????????????????????????????????????? | | ?????????????????????????################????????? | | ?????????????????????????#"=### #????????? | | ??????????????????#??????#" !#X #????????? | | ?????????????????## ?????#"= #????????? | | ????????????????? ?????#"! #????????? | | ?????????????????# ?????#" =/# #????????? | | ?????????????????? ?????#"! # #????????? | | ??????????????????# ????######## #????????? | | ??????????????????# ???????????# #????????? | | ??????????????????# ?#######???###### ##????????? | | ??????????????????# ## ##???????# #?????????? | | ??????????????????# u ##??????# #?????????? | | ??????????????????# %d ######## #?????????? | | ??????????????????##d ! u #?????????? | | ???????????????????# @ ###########?????????? | | ???????????????????# #??????????????????? | | ???????????????????# #??????????????????? | | ???????????????????# ] ##??????????????????? | | ???????????????????# # ##???????????????????? | | ??????????????????# ##! /#????????????????????? | | ??????????????????# ###""##????????????????????? | | ??????????????????# ???????????????????????????? | | ??????????????????## ???????????????????????????? | | ???????????????????## ???????????????????????????? | | ????????????????????? ???????????????????????????? | | ????????????????????? ???????????????????????????? | | ????????????????????? ???????????????????????????? | | ????????????????????? ???????????????????????????? | | ?????????????????????????????????????????????????? | | ?????????????????????????????????????????????????? | | ?????????????????????????????????????????????????? | | ?????????????????????????????????????????????????? | | ?????????????????????????????????????????????????? | | ?????????????????????????????????????????????????? | | ?????????????????????????????????????????????????? | | ?????????????????????????????????????????????????? | | ?????????????????????????????????????????????????? | | ?????????????????????????????????????????????????? | | ?????????????????????????????????????????????????? | +----------------------------------------------------+ Best States ------------- Heat Dissipation 25 Energy Generation 10 Energy Capacity 250 Matter Stores 300 Matter Capacity 300 Sight Range 16 Terrain Scan Density 10 Core Shielding 20 Evasion (%) 55 Recoil Reduction 2 Item Schematics ----------------- None Robot Schematics ------------------ None Fabricated ------------ Nothing Alien Tech Used ----------------- None Achievements -------------- None Challenges ------------ None Game ------ Seed TransdimensionalTiamatTube Manual? 0 Play Time 00:18:28 Cumulative 127.6 hours Start 2024.04.24 @ 03:05:41 End 2024.04.24 @ 03:22:38 Sessions 1 Manual Loads 0 Difficulty Rogue Special Mode None Game No. 71 Rogue 71 Adventurer 0 Explorer 0 Win Type - Total 4 Types 3/0/0/1/0/0/0/0/0 Lore% 57 Gallery% 77 Achievement% 52 Wizard Run 0 Options --------- Layout 2 ASCII 0 Keyboard 1 Movement Numpad Keybinds 0 Fullscreen 2 Font 32/Tamsyn Map View 50x44 Zoom Use 0% Tactical HUD 1 Map Filters NONE Filters NONE Steam 1 RUN: 631b804a-67fe-44db-b220-78d975ab7ed1